bitfinex-derivatives/quotes_SOLF0:USTF0_20240911
["timestamp","ask_amount","ask_price","bid_price","bid_amount"]
[1726078519161,18.01,133.38,133.28,21.75962496]
[1726078519571,18.01,133.39,133.3,18.01]
[1726078519865,2.6665,133.4,133.31,18.01]
[1726078520661,2.6665,133.4,133.36,3.749]
[1726078521566,2.6665,133.4,133.31,21.73187218]
[1726078522353,2.6665,133.4,133.35,3.7491]
[1726078522558,2.6665,133.4,133.34,18.01]
[1726078523162,2.6665,133.4,133.36,3.7488]
[1726078523355,2.6665,133.4,133.34,18.01]
[1726078523763,2.6665,133.4,133.37,3.7485]
[1726078524460,2.6665,133.4,133.36,3.7489]
[1726078524661,2.6665,133.4,133.34,18.01]
[1726078524862,2.6665,133.4,133.32,18.01]
[1726078525461,6.4145,133.4,133.34,3.7494]
[1726078525770,20.6765,133.4,133.32,18.01]
[1726078526066,3.7484,133.39,133.33,3.7497]
[1726078526370,3.7484,133.39,133.32,18.01]
[1726078526666,3.7484,133.39,133.34,3.7496]
[1726078526869,20.6765,133.4,133.32,18.01]
[1726078527167,20.6765,133.4,133.34,3.7494]
[1726078527371,3.7488,133.37,133.3,21.68417322]
[1726078527570,3.7488,133.37,133.3,18.01]
[1726078527770,3.7488,133.37,133.33,3.7498]
[1726078528167,18.01,133.37,133.18,3.8289256]
[1726078528471,21.7595,133.35,133.3,3.7505]
[1726078528659,4.156,133.34,133.27,3.67979696]
[1726078528867,7.9056,133.34,133.29,3.7508]
[1726078529067,4.156,133.34,133.27,3.7982703]
[1726078529265,4.156,133.34,133.25,18.01]
[1726078529978,18.01,133.33,133.23,18.01]
[1726078530169,3.75,133.33,133.27,3.7513]
[1726078530368,22.166,133.34,133.24,3.68707967]
[1726078530772,3.7502,133.32,133.26,3.7517]
[1726078531274,22.166,133.34,133.24,3.68707967]
[1726078531477,4.156,133.34,133.27,18.01]
[1726078532461,18.01,133.33,133.23,18.01]
[1726078532661,18.01,133.31,133.23,18.01]
[1726078532872,18.01,133.3,133.21,18.01]
[1726078533074,18.01,133.32,133.21,18.01]
[1726078533272,22.166,133.34,133.14,139.14234639]
[1726078533573,18.01,133.29,133.19,18.01]
[1726078533775,4.1741,133.28,133.19,18.01]
[1726078535674,4.1741,133.28,133.21,18.01]
[1726078536471,4.1741,133.28,133.21,21.68345429]
[1726078536672,2.7548,133.28,133.23,18.01]
[1726078537275,2.7548,133.28,133.25,3.7519]
[1726078539275,2.7548,133.28,133.2,18.01]
[1726078539481,2.7548,133.28,133.22,18.01]
[1726078539677,2.7548,133.28,133.24,3.7521]
[1726078539974,2.7548,133.28,133.22,21.83138836]
[1726078540175,2.7548,133.28,133.25,3.752]
[1726078540878,2.7548,133.28,133.22,21.83138836]
[1726078540879,2.7548,133.28,133.26,3.7518]
[1726078541478,2.7548,133.28,133.24,18.01]
[1726078542179,2.7548,133.28,133.26,3.7516]
[1726078542678,2.7548,133.28,133.25,3.7521]
[1726078542876,2.7548,133.28,133.24,18.01]
[1726078543276,18.01,133.34,133.24,18.01]
[1726078543480,2.795,133.33,133.24,18.01]
[1726078543779,2.795,133.33,133.22,3.82138836]
[1726078543780,2.795,133.33,133.29,3.7508]
[1726078544276,3.7506,133.31,133.26,3.7517]
[1726078544469,20.805,133.33,133.22,21.83138836]
[1726078544672,20.805,133.33,133.22,18.01]
[1726078545074,20.805,133.33,133.23,3.67054409]
[1726078545274,20.805,133.33,133.19,18.01]
[1726078545275,20.805,133.33,133.24,18.01]
[1726078546680,2.795,133.33,133.28,3.751]
[1726078546981,2.795,133.33,133.26,18.01]
[1726078549280,2.795,133.33,133.29,3.7508]
[1726078549480,2.795,133.33,133.28,18.01]
[1726078549871,2.795,133.33,133.23,3.76547842]
[1726078550081,2.795,133.33,133.26,18.01]
[1726078550977,3.7503,133.32,133.26,21.7617]
[1726078551174,20.805,133.33,133.24,18.01]
[1726078551975,3.7505,133.31,133.26,3.7517]
[1726078552282,18.01,133.31,133.22,18.01]
[1726078552477,3.7507,133.3,133.25,3.7519]
[1726078552677,18.01,133.31,133.23,3.75722045]
[1726078552877,18.01,133.31,133.22,18.01]
[1726078553075,3.7512,133.29,133.24,3.7523]
[1726078553780,3.7508,133.3,133.25,3.7521]
[1726078554179,18.01,133.29,133.21,3.7531]
[1726078554374,3.7518,133.27,133.18,18.01]
[1726078554686,1.3412,133.28,133.18,18.01]
[1726078554991,5.0927,133.28,133.22,3.7528]
[1726078555580,1.3412,133.28,133.23,3.7526]
[1726078556388,5.0925,133.28,133.23,3.7526]
[1726078556583,1.3412,133.28,133.2,18.01]
[1726078556786,6.4947,133.27,133.2,18.01]
[1726078556983,6.4947,133.27,133.22,3.7528]
[1726078557180,2.7431,133.27,133.22,3.7528]
[1726078557386,2.7431,133.27,133.2,18.01]
[1726078557588,1.3587,133.27,133.21,3.69727323]
[1726078557989,18.01,133.3,133.14,129.04279943]
[1726078558183,5.17856668,133.29,133.19,18.01]
[1726078558795,18.01,133.28,133.19,18.01]
[1726078559185,3.752,133.26,133.2,3.7534]
[1726078559588,1.3921,133.27,133.21,18.01]
[1726078560390,1.3921,133.27,133.23,3.7525]
[1726078561395,1.3921,133.27,133.19,18.01]
[1726078561789,1.3921,133.27,133.14,129.04279943]
[1726078562091,1.3921,133.27,133.16,18.01]
[1726078562493,2.7231,133.27,133.16,18.01]
[1726078562691,2.7231,133.27,133.18,18.01]
[1726078562901,2.7231,133.27,133.22,3.7528]
[1726078563202,2.7231,133.27,133.2,18.01]
[1726078563402,1.3567,133.29,133.22,18.01]
[1726078563596,1.3567,133.29,133.24,3.7524]
[1726078563902,1.3567,133.29,133.22,18.01]
[1726078564096,1.3134,133.33,133.25,18.01]
[1726078565300,3.7504,133.32,133.26,3.7518]
[1726078565606,3.7504,133.32,133.25,18.01]
[1726078566005,1.3134,133.33,133.26,3.7517]
[1726078566207,18.01,133.28,133.18,18.01]
[1726078566397,4.2342,133.27,133.18,18.01]
[1726078566699,2.8283,133.27,133.2,18.01]
[1726078567103,2.8283,133.27,133.21,3.8447396]
[1726078567298,2.8283,133.27,133.21,3.7441843]
[1726078567604,2.8283,133.27,133.19,18.01]
[1726078567904,1.4059,133.34,133.19,18.01]
[1726078568109,18.01,133.29,133.23,3.7525]
[1726078568304,21.7612,133.29,133.21,3.71604382]
[1726078568500,3.7512,133.29,133.2,18.01]
[1726078568893,21.7605,133.31,133.2,18.01]
[1726078569092,18.01,133.31,133.2,18.01]
[1726078569294,20.8383,133.33,133.26,3.7517]
[1726078569693,20.8383,133.33,133.23,21.81112078]
[1726078570104,2.8283,133.33,133.25,18.01]
[1726078570500,2.8283,133.33,133.28,3.7511]
[1726078571695,2.8283,133.33,133.29,3.7509]
[1726078572102,2.8283,133.33,133.25,18.01]
[1726078572804,3.7494,133.35,133.26,18.01]
[1726078573008,18.01,133.36,133.26,18.01]
[1726078574197,3.7493,133.35,133.3,3.7505]
[1726078574400,18.01,133.36,133.26,18.01]
[1726078574602,3.7497,133.34,133.26,18.01]
[1726078575206,3.7497,133.34,133.29,3.7508]
[1726078575610,3.7494,133.35,133.29,3.7508]
[1726078575809,3.7494,133.35,133.3,3.7506]
[1726078576112,18.01,133.38,133.28,18.01]
[1726078576611,18.01,133.38,133.31,3.7502]
[1726078577013,3.7492,133.36,133.31,3.7502]
[1726078577414,18.01,133.38,133.32,3.7501]
[1726078577610,18.01,133.38,133.29,3.70452786]
[1726078577914,18.01,133.38,133.28,18.01]
[1726078578310,18.01,133.38,133.33,3.7497]
[1726078578611,4.1121,133.39,133.31,18.01]
[1726078579012,7.8603,133.39,133.33,3.7497]
[1726078579314,7.8603,133.39,133.31,18.01]
[1726078579519,4.1121,133.39,133.34,3.7494]
[1726078580012,4.1121,133.39,133.34,3.7495]
[1726078580514,4.1121,133.39,133.32,3.78318584]
[1726078580703,18.01,133.4,133.31,18.01]
[1726078580908,3.7477,133.41,133.31,18.01]
[1726078581111,3.7477,133.41,133.36,3.749]
[1726078582110,3.7479,133.4,133.36,3.749]
[1726078582507,22.0157,133.42,133.36,3.749]
[1726078582709,22.0157,133.42,133.35,3.7492]
[1726078583214,3.7481,133.4,133.36,3.7488]
[1726078584813,22.0157,133.42,133.31,21.84043347]
[1726078585318,3.748,133.4,133.31,21.84043347]
[1726078585521,22.0157,133.42,133.31,21.84043347]
[1726078586321,18.01,133.4,133.31,18.01]
[1726078586619,3.7486,133.38,133.34,3.7494]
[1726078586823,3.7486,133.38,133.31,18.01]
[1726078587225,3.7484,133.39,133.34,3.7495]
[1726078587818,18.01,133.4,133.24,7.5045]
[1726078587819,18.01,133.4,133.29,18.01]
[1726078588012,18.01,133.38,133.29,18.01]
[1726078588226,1.3284,133.37,133.31,3.7503]
[1726078588727,3.7494,133.35,133.27,18.01]
[1726078589026,20.7108,133.36,133.31,3.7503]
[1726078589725,20.7108,133.36,133.27,21.73291226]
[1726078590114,24.41120255,133.36,133.27,21.73291226]
[1726078590420,3.7494,133.35,133.27,21.73291226]
[1726078591226,24.41120255,133.36,133.27,21.73291226]
[1726078591227,28.16030255,133.36,133.27,21.73291226]
[1726078591425,24.41120255,133.36,133.27,21.73291226]
[1726078591617,24.41120255,133.36,133.29,3.7508]
[1726078591820,3.7496,133.34,133.29,3.7508]
[1726078592821,3.7494,133.35,133.3,3.7507]
[1726078593028,3.7494,133.35,133.27,21.73291226]
[1726078593029,24.41120255,133.36,133.27,21.73291226]
[1726078593327,3.7497,133.34,133.29,3.7508]
[1726078593915,3.7499,133.33,133.28,3.7512]
[1726078594116,24.41120255,133.36,133.25,18.01]
[1726078594315,18.01,133.34,133.25,21.83453686]
[1726078594520,3.75,133.33,133.28,3.751]
[1726078594715,18.01,133.34,133.25,21.83453686]
[1726078595320,18.01,133.34,133.28,3.7511]
[1726078595927,18.01,133.34,133.25,21.83453686]
[1726078596230,21.7597,133.34,133.29,3.7509]
[1726078596422,21.7597,133.34,133.25,21.83453686]
[1726078596829,21.7597,133.34,133.29,3.7508]
[1726078597028,24.41120255,133.36,133.27,18.01]
[1726078597529,24.41120255,133.36,133.3,3.7506]
[1726078598425,3.7495,133.35,133.3,3.7506]
[1726078598722,24.41120255,133.36,133.3,3.7506]
[1726078599118,3.7496,133.34,133.3,3.7506]
[1726078599529,20.7108,133.36,133.31,3.7503]
[1726078599830,7.46845866,133.35,133.31,3.7503]
[1726078600419,18.01,133.32,133.14,128.815754]
[1726078600619,18.01,133.32,133.21,18.01]
[1726078600823,18.01,133.32,133.21,21.78034841]
[1726078601020,3.7507,133.3,133.25,3.752]
[1726078602428,3.7511,133.29,133.25,3.752]
[1726078603429,3.7508,133.3,133.25,3.752]
[1726078604430,3.751,133.29,133.25,3.752]
[1726078606732,3.7508,133.3,133.25,3.752]
[1726078607328,5.1748,133.31,133.21,21.78034841]
[1726078607526,1.4244,133.31,133.23,18.01]
[1726078607732,1.4244,133.31,133.24,18.01]
[1726078607933,1.4244,133.31,133.27,3.7514]
[1726078608235,1.4244,133.31,133.24,18.01]
[1726078608727,1.4244,133.31,133.28,3.7512]
[1726078609842,1.4244,133.31,133.24,18.01]
[1726078610043,1.4244,133.31,133.22,24.45434476]
[1726078611039,5.175,133.31,133.26,3.7517]
[1726078611437,1.4244,133.31,133.24,18.01]
[1726078612343,1.4244,133.31,133.28,3.7511]
[1726078614550,21.7597,133.34,133.29,3.7509]
[1726078616059,1.3487,133.35,133.26,18.01]
[1726078616247,1.3487,133.35,133.24,18.01]
[1726078616248,5.04018255,133.35,133.24,18.01]
[1726078616544,5.04018255,133.35,133.29,3.751]
[1726078616545,3.7499,133.33,133.29,3.751]
[1726078617641,21.7597,133.34,133.3,3.7506]
[1726078618744,21.7597,133.34,133.31,3.7504]
[1726078619743,3.7497,133.34,133.31,3.7504]
[1726078619940,1.3487,133.35,133.27,18.01]
[1726078620145,1.3487,133.35,133.28,18.01]
[1726078620348,3.72083427,133.38,133.28,18.01]
[1726078620547,7.46933427,133.38,133.29,2.8201]
[1726078620745,7.46933427,133.38,133.3,3.71708305]
[1726078620939,5.0773,133.37,133.32,3.7501]
[1726078621450,5.0773,133.37,133.33,3.7498]
[1726078621842,3.7491,133.36,133.29,2.8201]
[1726078622041,5.1286,133.36,133.31,3.7503]
[1726078622238,1.3795,133.36,133.31,3.7503]
[1726078622438,19.3895,133.36,133.26,18.01]
[1726078622650,20.7827,133.36,133.29,3.751]
[1726078622841,18.01,133.34,133.29,3.751]
[1726078623148,18.01,133.34,133.25,18.01]
[1726078623349,18.01,133.31,133.21,18.01]
[1726078623541,21.7606,133.31,133.21,18.01]
[1726078624147,1.3114,133.3,133.21,21.70570661]
[1726078624654,1.3114,133.3,133.26,3.7516]
[1726078625042,1.3932,133.36,133.25,18.01]
[1726078625254,19.3214,133.35,133.25,18.01]
[1726078625445,23.0709,133.35,133.25,21.77997332]
[1726078626043,19.3214,133.35,133.25,21.77997332]
[1726078626251,19.3214,133.35,133.27,18.01]
[1726078626252,1.3114,133.35,133.27,18.01]
[1726078626752,1.3114,133.35,133.31,3.7502]
[1726078626941,1.3114,133.35,133.28,3.74709318]
[1726078627644,1.3114,133.35,133.32,3.7499]
[1726078628957,1.3114,133.35,133.31,3.7503]
[1726078629556,1.3114,133.35,133.32,3.7501]
[1726078630055,1.3114,133.35,133.28,3.75328182]
[1726078630056,1.3932,133.36,133.29,18.01]
[1726078630256,1.3932,133.36,133.33,3.7497]
[1726078631254,1.3932,133.36,133.31,3.7504]
[1726078631657,1.3932,133.36,133.32,3.75]
[1726078632848,1.3932,133.36,133.28,3.687375]
[1726078633053,1.3932,133.36,133.33,3.7498]
[1726078633357,1.3932,133.36,133.28,3.687375]
[1726078633657,1.3932,133.36,133.34,3.7494]
[1726078634160,1.3932,133.36,133.35,3.7493]
[1726078636063,1.3284,133.37,133.36,3.749]
[1726078638064,26.934025,133.39,133.37,3.7487]
[1726078638255,23.185725,133.39,133.29,18.01]
[1726078639565,23.185725,133.39,133.36,3.7489]
[1726078639766,23.185725,133.39,133.31,18.01]
[1726078639767,1.4081,133.39,133.31,18.01]
[1726078640665,1.4081,133.39,133.36,3.7489]
[1726078641063,1.4081,133.39,133.31,18.01]
[1726078641863,1.4081,133.39,133.36,3.7488]
[1726078643263,1.4081,133.39,133.37,3.7487]
[1726078643864,1.4081,133.39,133.34,3.81851574]
[1726078644065,1.4081,133.39,133.31,18.01]
[1726078644573,1.4081,133.39,133.37,3.7487]
[1726078645071,18.01,133.41,133.37,3.7487]
[1726078645365,8.95659502,133.42,133.37,3.7487]
[1726078645570,5.20919502,133.42,133.37,3.7487]
[1726078645966,5.20919502,133.42,133.36,3.7489]
[1726078646163,18.01,133.41,133.32,1.3257]
[1726078646364,3.7486,133.38,133.34,3.7493]
[1726078646560,18.01,133.39,133.29,18.01]
[1726078647168,21.7584,133.39,133.34,3.7494]
[1726078648081,3.7485,133.38,133.34,3.7494]
[1726078648288,18.01,133.39,133.29,18.01]
[1726078648669,21.7583,133.39,133.29,18.01]
[1726078648871,21.7583,133.39,133.34,3.7494]
[1726078649469,21.7583,133.39,133.29,18.01]
[1726078649470,21.7583,133.39,133.35,3.7492]
[1726078649873,21.7583,133.39,133.29,18.01]
[1726078649874,21.7583,133.39,133.36,3.749]
[1726078650075,3.7483,133.39,133.36,3.749]
[1726078650370,3.748,133.4,133.36,3.749]
[1726078650980,3.7483,133.39,133.36,3.749]
[1726078652180,11.52,133.38,133.36,3.749]
[1726078652981,11.52,133.38,133.32,11.52]
[1726078653177,11.52,133.35,133.29,11.52]
[1726078653479,11.52,133.35,133.33,3.7497]
[1726078653680,11.52,133.36,133.3,11.52]
[1726078654183,2.8094,133.37,133.34,3.7494]
[1726078654583,2.8094,133.37,133.29,18.01]
[1726078654782,2.8094,133.37,133.35,3.7491]
[1726078655079,1.4405,133.37,133.35,3.7491]
[1726078655286,1.4405,133.37,133.29,18.01]
[1726078656178,19.4505,133.37,133.27,2.8515]
[1726078656577,19.4505,133.37,133.27,1.4293]
[1726078656578,18.01,133.35,133.27,1.4293]
[1726078656877,18.01,133.35,133.19,28.95939746]
[1726078656878,18.01,133.33,133.23,2.7022]
[1726078657079,18.01,133.31,133.23,2.7022]
[1726078657384,18.01,133.31,133.23,1.3369]
[1726078657779,21.7605,133.31,133.23,5.06176757]
[1726078658277,18.01,133.31,133.23,5.06176757]
[1726078659484,18.01,133.31,133.26,3.7516]
[1726078659789,18.01,133.31,133.23,5.06176757]
[1726078659998,6.47237702,133.32,133.23,5.06176757]
[1726078660177,3.7505,133.31,133.23,5.06176757]
[1726078660486,2.716,133.32,133.23,5.06176757]
[1726078660685,2.716,133.32,133.25,18.01]
[1726078661196,2.716,133.32,133.28,3.7511]
[1726078661392,2.716,133.32,133.25,18.01]
[1726078662294,2.716,133.32,133.29,3.7507]
[1726078664092,1.4122,133.32,133.29,3.7507]
[1726078664493,1.4122,133.32,133.25,21.72754806]
[1726078664899,1.4122,133.32,133.29,3.7508]
[1726078665600,2.8032,133.34,133.26,18.01]
[1726078666692,2.8032,133.34,133.3,3.7505]
[1726078666889,2.8032,133.34,133.26,18.01]
[1726078667701,6.5529,133.34,133.29,3.7508]
[1726078667896,7.8906,133.34,133.29,3.7508]
[1726078668204,3.75,133.33,133.28,3.7512]
[1726078668501,18.01,133.33,133.24,18.01]
[1726078668707,18.01,133.33,133.23,2.6923]
[1726078669003,18.01,133.33,133.27,3.7514]
[1726078669004,3.7503,133.32,133.27,3.7514]
[1726078669197,4.1409,133.34,133.13,3.44219746]
[1726078669198,18.01,133.31,133.13,3.44219746]
[1726078669395,18.01,133.31,133.2,18.01]
[1726078669588,18.01,133.31,133.2,21.75531185]
[1726078669799,18.01,133.31,133.21,18.01]
[1726078670592,22.1509,133.34,133.2,5.07321185]
[1726078670895,22.1509,133.34,133.24,18.01]
[1726078671597,3.7502,133.32,133.27,3.7514]
[1726078672196,22.1509,133.34,133.28,3.7511]
[1726078673394,3.7499,133.33,133.29,3.751]
[1726078673598,22.1509,133.34,133.29,3.751]
[1726078673799,25.9007,133.34,133.29,3.751]
[1726078674593,22.1509,133.34,133.28,3.7513]
[1726078674802,22.1509,133.34,133.24,21.77650506]
[1726078674803,3.8186457,133.33,133.24,21.77650506]
[1726078675007,18.01,133.32,133.24,21.77650506]
[1726078675204,21.70035721,133.32,133.27,3.7513]
[1726078675506,21.70035721,133.32,133.24,21.77650506]
[1726078675710,25.45075721,133.32,133.24,18.01]
[1726078676299,25.45075721,133.32,133.27,3.7514]
[1726078676501,18.01,133.3,133.2,1.3279]
[1726078676697,1.3982,133.29,133.24,3.7522]
[1726078676898,1.3982,133.29,133.21,3.73612094]
[1726078677102,5.1494,133.29,133.21,3.73612094]
[1726078677303,18.01,133.26,133.17,169.25511932]
[1726078677499,3.7523,133.25,133.17,173.09358554]
[1726078677707,18.01,133.26,133.17,173.09358554]
[1726078678010,18.01,133.26,133.17,191.10358554]
[1726078678607,18.01,133.24,133.17,169.25511932]
[1726078678911,18.01,133.24,133.14,1.4213]
[1726078679110,1.3819,133.23,133.17,3.7543]
[1726078679507,5.1346,133.23,133.17,3.7543]
[1726078679708,1.3819,133.23,133.18,3.7541]
[1726078680310,1.3819,133.23,133.19,3.7536]
[1726078680502,2.6744,133.28,133.17,3.69024116]
[1726078680700,2.6744,133.28,133.16,18.01]
[1726078680701,19.3919,133.27,133.16,18.01]
[1726078681306,19.3919,133.27,133.18,18.01]
[1726078681612,19.3919,133.27,133.19,3.78349973]
[1726078681813,1.3819,133.27,133.18,18.01]
[1726078682010,1.3819,133.27,133.19,1.4144]
[1726078682210,2.6744,133.28,133.24,3.7522]
[1726078682409,2.6744,133.28,133.19,1.4144]
[1726078682610,18.01,133.26,133.16,18.01]
[1726078682801,3.7524,133.24,133.14,19.4313]
[1726078683006,1.3924,133.25,133.14,19.4313]
[1726078683205,1.3924,133.25,133.2,3.7533]
[1726078683806,1.3924,133.25,133.22,3.7529]
[1726078684716,1.3924,133.25,133.18,18.01]
[1726078684906,1.3924,133.25,133.18,21.84237456]
[1726078685618,2.6744,133.28,133.18,21.84237456]
[1726078685818,2.6744,133.28,133.2,18.01]
[1726078686515,2.6744,133.28,133.2,21.82961499]
[1726078687017,2.6744,133.28,133.2,18.01]
[1726078687316,2.6744,133.28,133.23,3.7524]
[1726078688007,18.01,133.27,133.14,1.4213]
[1726078688215,18.01,133.27,133.14,19.4313]
[1726078688519,18.01,133.21,133.14,1.4213]
[1726078688815,18.01,133.25,133.14,19.4313]
[1726078689007,5.08127342,133.24,133.19,3.7537]
[1726078689206,1.4173,133.24,133.19,3.7537]
[1726078689407,1.4173,133.24,133.14,19.4313]
[1726078689620,5.1698,133.24,133.14,19.4313]
[1726078690206,33.9998,133.24,133.14,1.4213]
[1726078690418,30.2473,133.24,133.14,1.4213]
[1726078690915,30.2473,133.24,133.19,3.7536]
[1726078691315,30.2473,133.24,133.14,1.4213]
[1726078692417,1.4173,133.24,133.2,3.7533]
[1726078693114,1.4173,133.24,133.21,3.7532]
[1726078693716,1.4173,133.24,133.22,3.7529]
[1726078695016,1.4173,133.24,133.23,3.7527]
[1726078699821,28.83,133.27,133.25,3.752]
[1726078700134,2.6744,133.28,133.18,28.83]
[1726078700336,2.6744,133.28,133.27,3.7515]
[1726078701525,2.6744,133.28,133.2,28.83]
[1726078701933,2.6744,133.28,133.24,3.7522]
[1726078702144,6.4258,133.28,133.24,3.7522]
[1726078702631,2.6744,133.28,133.19,2.8313]
[1726078702822,2.6744,133.28,133.2,28.83]
[1726078703422,2.6744,133.28,133.19,2.8313]
[1726078703932,2.6744,133.28,133.25,3.7519]
[1726078704135,2.6744,133.28,133.19,2.8313]
[1726078704822,2.6744,133.28,133.25,3.7519]
[1726078705542,2.6744,133.28,133.19,2.8313]
[1726078705832,6.4259,133.28,133.19,2.8313]
[1726078706031,28.83,133.27,133.22,3.7528]
[1726078706249,28.83,133.27,133.19,2.8313]
[1726078706540,28.83,133.27,133.24,3.7524]
[1726078707032,28.83,133.27,133.19,2.8313]
[1726078707639,28.83,133.27,133.23,3.7525]
[1726078708339,28.83,133.27,133.24,3.7524]
[1726078708724,28.83,133.27,133.19,2.8313]
[1726078709136,28.83,133.27,133.14,7.5103]
[1726078709333,1.3039,133.26,133.15,31.5447]
[1726078709533,3.7522,133.25,133.2,3.7533]
[1726078709849,3.7522,133.25,133.15,31.5447]
[1726078710138,1.3039,133.26,133.21,3.7531]
[1726078710639,5.0558,133.26,133.21,3.7531]
[1726078710839,1.3039,133.26,133.2,3.7533]
[1726078711141,1.3039,133.26,133.15,31.5447]
[1726078711948,5.0558,133.26,133.21,3.753]
[1726078712237,23.0658,133.26,133.21,3.753]
[1726078713933,23.0658,133.26,133.22,3.753]
[1726078716341,23.0658,133.26,133.23,3.7526]
[1726078716537,19.3139,133.26,133.16,18.01]
[1726078716740,2.6744,133.28,133.19,18.01]
[1726078716942,18.01,133.3,133.27,3.7514]
[1726078717336,18.01,133.3,133.26,3.7516]
[1726078717842,21.7608,133.3,133.22,3.70843029]
[1726078718049,1.3498,133.31,133.23,18.01]
[1726078718544,1.3498,133.31,133.29,3.751]
[1726078719338,1.3498,133.31,133.3,3.7507]
[1726078720038,25.45276405,133.34,133.3,3.7507]
[1726078720235,25.45276405,133.34,133.23,18.01]
[1726078720846,25.45276405,133.34,133.29,3.7508]
[1726078721143,3.7502,133.32,133.23,18.01]
[1726078721737,3.7502,133.32,133.24,3.81818196]
[1726078722242,3.7502,133.32,133.23,18.01]
[1726078722738,3.7502,133.32,133.23,21.69388159]
[1726078722939,3.75,133.33,133.28,3.7511]
[1726078723134,21.76703402,133.34,133.23,21.69388159]
[1726078723647,3.75,133.33,133.28,3.751]
[1726078723939,3.75,133.33,133.23,21.69388159]
[1726078724443,25.51663402,133.34,133.25,18.01]
[1726078725146,21.76703402,133.34,133.25,18.01]
[1726078726350,3.75,133.33,133.25,18.01]
[1726078726743,5.1301,133.33,133.25,18.01]
[1726078726947,5.1301,133.33,133.28,3.751]
[1726078727342,18.01,133.32,133.23,3.68388159]
[1726078727539,19.3512,133.32,133.27,3.7514]
[1726078727946,19.3512,133.32,133.24,3.78779556]
[1726078728151,19.3512,133.32,133.27,3.7514]
[1726078728656,23.1015,133.32,133.28,3.7511]
[1726078731966,1.3412,133.32,133.24,3.77466564]
[1726078732247,1.3801,133.33,133.31,3.7504]
[1726078732452,1.3801,133.33,133.26,18.01]
[1726078733255,18.01,133.37,133.28,18.01]
[1726078733446,21.74762004,133.37,133.28,21.78588535]
[1726078734450,3.7491,133.36,133.31,3.7502]
[1726078735453,21.7595,133.35,133.26,23.21320525]
[1726078736749,21.7595,133.35,133.29,3.7507]
[1726078737050,21.7595,133.35,133.26,23.21320525]
[1726078738153,3.7497,133.34,133.26,23.21320525]
[1726078738345,18.01,133.35,133.26,23.21320525]
[1726078738745,3.7496,133.34,133.29,3.7508]
[1726078739654,19.347,133.33,133.25,1.4074]
[1726078739857,20.7439,133.33,133.25,1.4074]
[1726078740052,24.4938,133.33,133.28,3.7511]
[1726078740555,3.7508,133.3,133.25,3.752]
[1726078740859,18.01,133.29,133.18,18.01]
[1726078741058,19.3588,133.29,133.18,18.01]
[1726078741261,19.3588,133.29,133.25,3.752]
[1726078741451,19.3588,133.29,133.21,3.77776688]
[1726078741761,1.337,133.28,133.24,3.7522]
[1726078742066,1.337,133.28,133.21,3.79390156]
[1726078742353,1.337,133.28,133.21,3.84493219]
[1726078742559,1.337,133.28,133.18,18.01]
[1726078743358,18.01,133.27,133.21,3.7532]